fUSD/lending_fUSD_20240419
["ID","MTS","AMOUNT","RATE_DAILY","PERIOD"]
[322923021,1713513037985,-204.00908,0.0001582,2]
[322923023,1713513037995,-204.00908,0.0001582,2]
[322923024,1713513038005,-204.00908,0.0001582,2]
[322923026,1713513038014,-170.73,0.00015831,2]
[322923028,1713513038023,-800.0,0.00015863,2]
[322923030,1713513038033,-167.80937995,0.00015878,2]
[322923032,1713513038043,-610.2785,0.00015879,2]
[322923034,1713513038052,-1000.0,0.0001588,2]
[322923036,1713513038062,-1000.0,0.0001588,2]
[322923038,1713513038072,-1000.0,0.0001588,2]
[322923040,1713513038081,-1000.0,0.0001588,2]
[322923042,1713513038091,-1000.0,0.0001588,2]
[322923044,1713513038100,-311.0,0.0001588,2]
[322923046,1713513038111,-180.46668736,0.0001588,2]
[322923047,1713513038121,-179.80739765,0.0001588,2]
[322923048,1713513038130,-19317.34782187,0.0001588,2]
[322923049,1713513038140,-167.80937994,0.00015889,2]
[322923050,1713513038152,-297.807865,0.0001589,2]
[322923051,1713513038163,-200.0,0.000159,5]
[322923052,1713513038173,-167.80937994,0.000159,2]
[322923053,1713513038183,-249.92152172,0.000159,2]
[322923054,1713513038192,-1447.20453994,0.000159,2]
[322923055,1713513038202,-2696.80553132,0.000159,2]
[322923056,1713513038211,-1610.81649875,0.000159,2]
[322923057,1713513038220,-800.0,0.00015945,2]
[322923058,1713513038230,-161.00693236,0.0001597,2]
[322923059,1713513038240,-150.88,0.0001597,2]
[322923060,1713513038250,-150.88,0.0001597,2]
[322923061,1713513038259,-150.88,0.0001597,2]
[322923063,1713513038268,-150.88,0.0001597,2]
[322923065,1713513038278,-6254.84640997,0.00015977,2]
[322923067,1713513038287,-156.94408569,0.00015978,2]
[322923069,1713513038296,-162.24557716,0.00015978,2]
[322923071,1713513038306,-157.17440551,0.00015978,2]
[322923073,1713513038316,-164.59322308,0.00015978,2]
[322923075,1713513038325,-362.70496122,0.00015978,2]
[322923077,1713513038334,-308.3528094,0.00015978,2]
[322923078,1713513038344,-192.56367709,0.00015978,2]
[322923079,1713513038353,-201.52609927,0.00015978,2]
[322923080,1713513038363,-305.9617439,0.00015978,2]
[322923081,1713513038372,-155.28981591,0.00015978,2]
[322923082,1713513038382,-2184.37129362,0.00015978,2]
[322923083,1713513038391,-155.37580433,0.00015978,2]
[322923084,1713513038404,-85713.43535033,0.00015978,2]
[322923085,1713513038413,-3773.69257213,0.00015978,2]
[322923086,1713513038423,-7228.71600604,0.00015978,2]
[322923087,1713513038433,-162.13640766,0.00015978,2]
[322923088,1713513038443,-3481.93251602,0.00015978,2]
[322923089,1713513038454,-227.79671677,0.00015978,2]
[322923090,1713513038463,-1000.0,0.00015978,2]
[322923091,1713513038473,-510.0,0.00015978,2]
[322923092,1713513038482,-1000.0,0.00015978,2]
[322923093,1713513038492,-1000.0,0.00015978,2]
[322923094,1713513038501,-1000.0,0.00015978,2]
[322923095,1713513038511,-1000.0,0.00015978,2]
[322923096,1713513038520,-1000.0,0.00015978,2]
[322923097,1713513038529,-1000.0,0.00015978,2]
[322923098,1713513038538,-1000.0,0.00015978,2]
[322923099,1713513038547,-1000.0,0.00015978,2]
[322923100,1713513038556,-1000.0,0.00015978,2]
[322923101,1713513038566,-1000.0,0.00015978,2]
[322923102,1713513038575,-1000.0,0.00015978,2]
[322923103,1713513038585,-1000.0,0.00015978,2]
[322923104,1713513038594,-1000.0,0.00015978,2]
[322923105,1713513038604,-1000.0,0.00015978,2]
[322923106,1713513038613,-1000.0,0.00015978,2]
[322923107,1713513038623,-1000.0,0.00015978,2]
[322923108,1713513038632,-1000.0,0.00015978,2]
[322923109,1713513038642,-1000.0,0.00015978,2]
[322923110,1713513038654,-156.5219401,0.00015979,2]
[322923111,1713513038664,-787.24528409,0.00015979,2]
[322923112,1713513038674,-156.28866262,0.00015979,2]
[322923113,1713513038684,-268.35852299,0.00015979,2]
[322923114,1713513038694,-23314.33584788,0.00015979,2]
[322923115,1713513038704,-8331.13038189,0.00015979,3]
[322923116,1713513038714,-1165046.40192535,0.0001598,2]
[322923117,1713513038724,-7273.9129605,0.0001598,2]
[322923118,1713513038733,-772.53323901,0.0001598,2]
[322923119,1713513038743,-204.00907,0.0001598,2]
[322923120,1713513038753,-204.00908,0.0001598,2]
[322923121,1713513038763,-161.00693236,0.0001599,2]
[322923122,1713513038772,-161.00693236,0.0001599,2]
[322923123,1713513038782,-150.88,0.0001599,2]
[322923124,1713513038792,-150.88,0.0001599,2]
[322923125,1713513038801,-150.88,0.0001599,2]
[322923126,1713513038811,-150.88,0.0001599,2]
[322923127,1713513038820,-150.88,0.0001599,2]
[322923128,1713513038830,-12602.86369972,0.00016,2]
[322923129,1713513038840,-155.0,0.00016,2]
[322923130,1713513038849,-158.7687991,0.00016,2]
[322923131,1713513038859,-1246885.30333898,0.00016,2]
[322923132,1713513038872,-416319.56428452,0.00016,2]
[322923133,1713513038882,-6554.0,0.00016,2]
[322923134,1713513038892,-158.12,0.00016,2]
[322923135,1713513038906,-151.0,0.00016,2]
[322923136,1713513038916,-793.62462327,0.00016,2]
[322923137,1713513038928,-115.83537673,0.00016,2]
[322923138,1713513038937,-203.90468,0.00016,2]
[322923139,1713513038947,-1001.05,0.00016,2]
[322923140,1713513038957,-78.32805558,0.00016021,2]
[322923141,1713513038969,-409.62464335,0.00016021,2]
[322923142,1713513038981,-836.87762474,0.00016021,2]
[322923143,1713513039011,-709.08266212,0.00016021,2]
[322923144,1713513039062,-622.21983407,0.00016021,2]
[322923145,1713513039073,-310.24010705,0.00016021,2]
[322923146,1713513039096,-330.98596817,0.00016021,2]
[322923147,1713513039120,-424.0464867,0.00016021,2]
[322923148,1713513039132,-4647.92,0.00016021,2]
[322923149,1713513039164,-422.3012499,0.00016021,2]
[322923150,1713513039176,-517.9058607,0.00016021,2]
[322923151,1713513039190,-10007.81532942,0.00016021,2]
[322923152,1713513039200,-200.0,0.00016096,2]
[322923153,1713513039209,-179.80739765,0.00016124,2]
[322923154,1713513039219,-583.0,0.00016137,2]
[322923155,1713513039228,-1108.0,0.00016137,2]
[322923156,1713513039238,-19317.3478218,0.00016163,2]
[322923157,1713513039248,-500.0,0.00016169,2]
[322923158,1713513039257,-8000.0,0.000162,2]
[322923159,1713513039266,-7122.78711818,0.000162,2]
[322923163,1713513040972,1250.0,0.00015,2]
[322923164,1713513041300,-877.20288182,0.000162,2]
[322923165,1713513041310,-723.7669838,0.000162,2]
[322923166,1713513041407,-1087.29,0.000162,2]
[322923167,1713513041419,-549.36257236,0.000162,2]
[322923168,1713513041438,-5639.58044384,0.000162,2]
[322923169,1713513041447,-150.88,0.000162,2]
[322923170,1713513041457,-8000.0,0.0001621,2]
[322923171,1713513041466,-8000.0,0.0001621,2]
[322923172,1713513041476,-200.0,0.00016218,2]
[322923173,1713513041485,-1000.0,0.00016218,2]
[322923174,1713513041495,-500.0,0.00016218,2]
[322923175,1713513041504,-8000.0,0.0001622,2]
[322923176,1713513041513,-231.2,0.00016225,2]
[322923177,1713513041523,-150.88,0.00016228,2]
[322923178,1713513041532,-446.33925615,0.0001623,2]
[322923179,1713513041544,-1062.35456196,0.0001623,2]
[322923180,1713513041556,-877.73298598,0.0001623,2]
[322923181,1713513041567,-345.91147168,0.0001623,2]
[322923182,1713513041606,-3351.74839999,0.0001623,2]
[322923183,1713513041618,-368.64140941,0.0001623,2]
[322923184,1713513041634,-1547.27191483,0.0001623,2]
[322923185,1713513041643,-158.38616062,0.00016235,2]
[322923186,1713513041652,-151.0,0.00016238,2]
[322923187,1713513041672,-2133.08711455,0.00016238,2]
[322923188,1713513041706,-501.510625,0.00016238,2]
[322923189,1713513041717,-968.988,0.00016238,2]
[322923190,1713513041728,-2857.10069083,0.00016238,2]
[322923191,1713513041768,-7771.96226614,0.00016238,2]
[322923192,1713513041779,-10329.3,0.00016238,2]
[322923193,1713513041791,-402.80319184,0.00016238,2]
[322923194,1713513041803,-1923.7965244,0.00016238,2]
[322923207,1713513043312,-662.1095325,0.00016238,2]
[322923208,1713513043328,-721.5005745,0.00016238,2]
[322923209,1713513043339,-31665.33541412,0.00016238,2]
[322923210,1713513043403,-1331.24,0.00016238,2]
[322923211,1713513043420,-362707.57497391,0.00016238,2]
[322923212,1713513043429,-8000.0,0.0001624,2]
[322923213,1713513043438,-8000.0,0.0001625,2]
[322923214,1713513043447,-8000.0,0.0001626,2]
[322923215,1713513043458,-200.0,0.00016267,2]
[322923216,1713513043467,-1000.0,0.00016267,2]
[322923217,1713513043476,-500.0,0.00016267,2]
[322923218,1713513043486,-8000.0,0.0001627,2]
[322923219,1713513043496,-8000.0,0.0001628,2]
[322923220,1713513043505,-8000.0,0.0001629,2]
[322923221,1713513043516,-482.0,0.000163,2]
[322923222,1713513043528,-4500.16,0.000163,2]
[322923223,1713513043537,-2466.0,0.000163,2]
[322923224,1713513043547,-651.0,0.000163,2]
[322923225,1713513043557,-19317.3478218,0.00016304,2]
[322923226,1713513043568,-500.0,0.00016317,2]
[322923227,1713513043578,-500.0,0.00016317,2]
[322923228,1713513043588,-500.0,0.00016317,2]
[322923229,1713513043598,-500.0,0.00016317,2]
[322923230,1713513043880,-559.5236,0.00016317,2]
[322923231,1713513043978,-1468.22004456,0.00016337,2]
[322923232,1713513043989,-1000.0,0.00016338,2]
[322923233,1713513043999,-10000.0,0.00016338,2]
[322923234,1713513044008,-463.139,0.00016348,2]
[322923235,1713513044018,-972.45,0.00016348,2]
[322923236,1713513044027,-908.27328902,0.00016348,2]
[322923237,1713513044042,-1088.43071098,0.00016348,2]
[322923238,1713513044052,-1137.097,0.00016348,2]
[322923239,1713513044062,-1267.302,0.00016348,2]
[322923240,1713513044073,-269.26,0.00016348,2]
[322923241,1713513044086,-807.0,0.00016348,2]
[322923242,1713513044097,-239.426,0.00016348,2]
[322923243,1713513044108,-517.068,0.00016348,2]
[322923244,1713513044121,-355.0,0.00016348,2]
[322923245,1713513044131,-188.092,0.00016348,2]
[322923246,1713513044140,-150.186,0.00016348,2]
[322923247,1713513044149,-179.80739765,0.00016368,2]
[322923248,1713513044161,-7438.12038546,0.0001638,2]
[322923249,1713513044172,-2225.07197861,0.0001639,2]
[322923250,1713513044181,-167.0,0.0001639,2]
[322923251,1713513044193,-150.88,0.0001639,2]
[322923252,1713513044206,-249.9215217,0.00016393,2]
[322923253,1713513044215,-1160.93799595,0.00016393,2]
[322923254,1713513044229,-286.26654398,0.00016393,2]
[322923255,1713513044240,-745.93443527,0.00016393,2]
[322923256,1713513044260,-981.30311709,0.00016393,2]
[322923257,1713513044273,-494.33920324,0.00016393,2]
[322923258,1713513044359,-475.22877571,0.00016393,2]
[322923259,1713513044369,-23.73847692,0.00016393,2]
[322923260,1713513044380,-625.0,0.00016393,2]
[322923261,1713513044408,-962.07802182,0.00016393,2]
[322923262,1713513044417,-155.15653365,0.00016397,2]
[322923263,1713513044426,-1242.81455954,0.00016397,2]
[322923264,1713513044436,-203.79893697,0.00016397,2]
[322923265,1713513044446,-155.11908733,0.00016397,2]
[322923266,1713513044455,-517.81303092,0.00016397,2]
[322923267,1713513044467,-663.73364054,0.00016397,2]
[322923268,1713513044476,-245.12088853,0.00016397,2]
[322923269,1713513044486,-201.77178925,0.00016397,2]
[322923270,1713513044495,-782.62272185,0.00016397,2]
[322923271,1713513044505,-156.97672194,0.00016397,2]
[322923272,1713513044515,-155.75757922,0.00016397,2]
[322923273,1713513044524,-210.7209923,0.00016397,2]
[322923274,1713513044534,-49.05261727,0.00016397,2]
[322923275,1713513044568,-325.19681803,0.00016397,2]
[322923276,1713513044578,-356.63901592,0.00016397,2]
[322923277,1713513044590,-476.8176266,0.00016397,2]
[322923278,1713513044600,-419.22939929,0.00016398,2]
[322923279,1713513044609,-155.0,0.00016398,2]
[322923280,1713513044618,-465.55297411,0.00016398,2]
[322923281,1713513044675,-384.34999965,0.00016398,2]
[322923282,1713513044686,-311.7686698,0.00016398,2]
[322923283,1713513044702,-1235.76625073,0.00016398,2]
[322923284,1713513044713,-1964.23374927,0.00016398,2]
[322923290,1713513046532,-4328.68329831,0.00015779,2]
[322923291,1713513046547,-751.98950213,0.00015779,2]
[322923292,1713513046562,-3079.50911342,0.00015779,2]
[322923293,1713513046576,-197.38915542,0.000159,2]
[322923294,1713513046591,-1349.340975,0.00016398,2]
[322923295,1713513047075,-747.18885533,0.00016398,2]
[322923296,1713513047089,-174.12211115,0.00016398,2]
[322923297,1713513047104,-1073.45653571,0.00016398,2]
[322923299,1713513047120,-150.01,0.00016398,2]
[322923302,1713513047134,-1000.0,0.00016399,2]
[322923304,1713513047148,-1000.0,0.00016399,2]
[322923307,1713513047164,-60299.22249774,0.000164,3]
[322923317,1713513047434,-790.12443875,0.000164,3]
[322923318,1713513047462,-4683.35410283,0.000164,3]
[322923319,1713513047479,-629.27928532,0.000164,3]
[322923320,1713513047528,-401.62171625,0.000164,3]
[322923321,1713513114276,173.46,0.00015328,2]
[322923325,1713513146334,155.96,0.00015277,2]
[322923326,1713513243707,163.13,0.0001529,2]
[322923327,1713513254848,186.94,0.00015164,2]
[322923328,1713513254975,186.94,0.00015202,2]
[322923329,1713513255171,186.94,0.0001524,2]
[322923332,1713513410876,321.36,0.00015138,2]
[322923334,1713513438792,534.28,0.00013229,2]
[322923335,1713513438999,534.28,0.00015493,2]
[322923337,1713513461891,-532.89332388,0.00015663,2]
[322923338,1713513461912,-323.74545186,0.00015663,2]
[322923339,1713513461935,-1838.76223386,0.00015664,2]
[322923340,1713513461957,-150.0,0.00015664,2]
[322923341,1713513461978,-1294.9396767,0.00015665,2]
[322923342,1713513462001,-3079.50911342,0.00015665,2]
[322923343,1713513462023,-3715.15192631,0.00015677,2]
[322923344,1713513462045,-3624.884,0.00015677,2]
[322923345,1713513462066,-3728.91,0.0001568,2]
[322923346,1713513462088,-395.4523,0.0001568,2]
[322923347,1713513462107,-1315.75197397,0.0001568,2]
[322923348,1713513487310,517.37,0.00015231,2]
[322923349,1713513539429,10978.12995931,0.00023758,120]
[322923350,1713513585114,166.2,0.00015201,2]
[322923351,1713513692304,150.0,0.00027648,120]
[322923352,1713513693993,-1838.76223386,0.00015673,2]
[322923353,1713513694017,-323.74545186,0.00015674,2]
[322923354,1713513694041,-3079.50911342,0.00015675,2]
[322923355,1713513694064,-150.0,0.00015678,2]
[322923356,1713513694086,-14607.98320086,0.0001568,2]
[322923357,1713513784555,163.13,0.00015338,2]
[322923359,1713513853922,835.3117587,0.00015338,2]
[322923360,1713513869995,556.8745058,0.00015338,2]
[322923361,1713513880422,491.49,0.00015201,2]
[322923362,1713513892002,464.06208817,0.00015338,2]
[322923363,1713513909913,241.77634794,0.00015201,2]
[322923364,1713513923887,241.77634794,0.00015201,2]
[322923365,1713513927872,507.28,0.00013295,2]
[322923366,1713513931725,150.0,0.00026232,120]
[322923367,1713513944967,241.77634794,0.00015201,2]
[322923369,1713514021630,586.1,0.00015198,2]
[322923370,1713514023549,241.77634794,0.00015201,2]
[322923371,1713514040412,241.77634794,0.00015201,2]
[322923372,1713514050926,150.0,0.00024832,120]
[322923373,1713514062410,241.77634794,0.00015201,2]
[322923374,1713514084419,241.77634794,0.00015201,2]
[322923375,1713514106415,241.77634794,0.00015201,2]
[322923376,1713514110883,150.0,0.00026252,120]
[322923377,1713514126412,241.77634794,0.00015201,2]
[322923382,1713514146497,241.77634794,0.00015201,2]
[322923386,1713514170408,366.6090496,0.00015201,2]
[322923387,1713514174646,150.0,0.00025605,120]
[322923391,1713514200623,158.05660957,0.00015459,2]
[322923395,1713514231022,150.0,0.00027733,120]
[322923406,1713514232050,-323.74545186,0.00015558,2]
[322923408,1713514232060,-262.69664382,0.00015558,2]
[322923410,1713514232071,-284.09786747,0.00015558,2]
[322923411,1713514232082,-538.73586607,0.00015558,2]
[322923412,1713514232105,-372.88887261,0.00015558,2]
[322923413,1713514232116,-1621.08986345,0.00015558,2]
[322923414,1713514232125,-88.05626167,0.00015559,2]
[322923415,1713514232136,-384.20256361,0.00015559,2]
[322923416,1713514232147,-35.02117472,0.00015559,2]
[322923417,1713514232156,-158.05660954,0.00015564,2]
[322923418,1713514232165,-158.05660954,0.00015669,2]
[322923419,1713514232175,-150.0,0.00015679,2]
[322923420,1713514232184,-32465.73922517,0.0001568,2]
[322923421,1713514232193,-158.05660954,0.00015774,2]
[322923422,1713514232203,-1116.13338787,0.00015778,2]
[322923423,1713514232212,-168.45,0.00015831,2]
[322923424,1713514232222,-158.05660954,0.0001588,2]
[322923425,1713514232231,-3651.116,0.00015947,2]
[322923426,1713514232240,-158.05660954,0.00015985,2]
[322923427,1713514232249,-93950.94136278,0.00015989,6]
[322923430,1713514233417,-3909.41491116,0.00015989,6]
[322923431,1713514233431,-4482.44078379,0.00015989,6]
[322923432,1713514233478,-561.21784779,0.00015989,6]
[322923433,1713514233492,-648.56859254,0.00015989,6]
[322923434,1713514233506,-1550.0,0.00015989,6]
[322923435,1713514233547,-6369.9144,0.00015989,6]
[322923436,1713514233561,-2657.2692505,0.00015989,6]
[322923437,1713514233606,-491.76483723,0.00015989,6]
[322923438,1713514233618,-4493.81222611,0.00015989,6]
[322923439,1713514233630,-542.31677201,0.00015989,6]
[322923440,1713514233740,-523.430005,0.00015989,6]
[322923441,1713514233754,-4147.36848739,0.00015989,6]
[322923442,1713514233768,-633.16573653,0.00015989,6]
[322923462,1713514238139,-32551.977,0.00015989,6]
[322923463,1713514238151,-4764.03778717,0.00015989,6]
[322923464,1713514238160,-3013.71197907,0.00015989,6]
[322923465,1713514238178,-6386.13724998,0.00015989,6]
[322923468,1713514238189,-806.32941965,0.00015989,6]
[322923470,1713514238200,-634.0913513,0.00015989,6]
[322923472,1713514238210,-107.2257393,0.00015989,6]
[322923474,1713514238221,-1000.00663,0.00015989,6]
[322923475,1713514238234,-995.94,0.00015989,6]
[322923476,1713514238264,-14262.6176307,0.00015989,6]
[322923477,1713514238273,-5577.56,0.00015989,6]
[322923478,1713514238282,-155.0,0.00016,2]
[322923479,1713514238291,-3744.119,0.00016081,2]
[322923480,1713514238300,-499.99,0.00016081,2]
[322923481,1713514238309,-7268.88,0.00016086,2]
[322923482,1713514238319,-731.64664913,0.00016086,2]
[322923483,1713514238330,-651.18,0.00016086,2]
[322923484,1713514238377,-273.90363,0.00016086,2]
[322923485,1713514238389,-3028.09972087,0.00016086,2]
[322923486,1713514238398,-158.05660954,0.0001609,2]
[322923487,1713514238408,-200.0,0.00016096,2]
[322923488,1713514238417,-1273.0,0.000161,2]
[322923489,1713514238426,-350.23,0.000161,2]
[322923490,1713514238435,-793.63,0.000161,2]
[322923491,1713514238445,-329.28,0.000161,2]
[322923492,1713514238454,-270.11,0.000161,2]
[322923493,1713514238463,-512.0,0.00016164,2]
[322923494,1713514238472,-1087.0,0.00016164,2]
[322923495,1713514238484,-300.0,0.00016164,2]
[322923497,1713514238493,-827.94,0.00016164,2]
[322923499,1713514238502,-1144.41091176,0.00016199,2]
[322923501,1713514238511,-705.0,0.000162,2]
[322923502,1713514238521,-2220.0,0.000162,2]
[322923503,1713514238531,-200.0,0.00016218,2]
[322923504,1713514238541,-1000.0,0.00016218,2]
[322923507,1713514238551,-509.175221,0.00016218,2]
[322923510,1713514238560,-500.0,0.00016218,2]
[322923512,1713514238569,-200.0,0.00016218,2]
[322923515,1713514238579,-909.46,0.00016219,2]
[322923517,1713514238588,-909.46,0.00016219,2]
[322923521,1713514238598,-908.71,0.00016219,2]
[322923525,1713514238613,-183.85469905,0.00016235,2]
[322923529,1713514238623,-1167.49483,0.0001624,2]
[322923531,1713514238632,-200.0,0.00016267,2]
[322923533,1713514238642,-200.0,0.00016267,2]
[322923535,1713514238651,-1144.41091169,0.00016285,2]
[322923536,1713514238661,-723.42,0.00016289,3]
[322923538,1713514238670,-938.07655309,0.00016297,2]
[322923540,1713514238680,-363.48192365,0.00016297,2]
[322923542,1713514238690,-318.31440525,0.00016297,2]
[322923544,1713514238700,-155.22242022,0.00016297,2]
[322923546,1713514238709,-271.30520559,0.00016297,2]
[322923548,1713514238719,-267.61843268,0.00016297,2]
[322923550,1713514238729,-500.0,0.00016298,3]
[322923552,1713514238738,-500.0,0.00016298,3]
[322923554,1713514238748,-500.0,0.00016298,3]
[322923555,1713514238758,-500.0,0.00016298,3]
[322923556,1713514238767,-500.0,0.00016298,3]
[322923557,1713514238777,-500.0,0.00016298,3]
[322923558,1713514238787,-500.0,0.00016298,3]
[322923559,1713514238796,-500.0,0.00016298,3]
[322923560,1713514238805,-500.0,0.00016298,3]
[322923561,1713514238814,-500.0,0.00016298,3]
[322923562,1713514238823,-500.0,0.00016298,3]
[322923563,1713514238833,-500.0,0.00016298,3]
[322923564,1713514238842,-500.0,0.00016298,3]
[322923565,1713514238855,-500.0,0.00016298,3]
[322923566,1713514238864,-500.0,0.00016298,3]
[322923567,1713514238874,-596.26094216,0.00016298,3]
[322923568,1713514238883,-32634.27239376,0.00016299,2]
[322923569,1713514238918,-4852.6012,0.00016299,2]
[322923570,1713514238929,-10970.73987627,0.00016299,2]
[322923571,1713514238949,-547.9292889,0.00016299,2]
[322923572,1713514238981,-42847.80827974,0.00016299,2]
[322923573,1713514239028,-119934.89357756,0.00016299,2]
[322923574,1713514239039,-8044.29218377,0.00016299,2]
[322923575,1713514239049,-4313.0588,0.00016299,2]
[322923576,1713514239060,-180.93114239,0.00016299,2]
[322923577,1713514239070,-386.86659984,0.000163,2]
[322923578,1713514240322,-4206.95379858,0.00016,2]
[322923579,1713514240643,-688.48617091,0.00016,2]
[322923580,1713514240655,-304.635,0.00016,2]
[322923581,1713514240707,-774.040005,0.00016,2]
[322923582,1713514240719,-3082.04812006,0.00016,2]
[322923583,1713514240730,-499.98991922,0.00016,2]
[322923584,1713514240807,-1136.40609452,0.00016,2]
[322923585,1713514240952,-303.27304,0.00016,2]
[322923598,1713514243217,-1607.03155143,0.00016,2]
[322923599,1713514243227,-705.17991263,0.00016297,2]
[322923600,1713514243236,-11525.50913333,0.000163,2]
[322923601,1713514243410,-463.3999995,0.000163,2]
[322923604,1713514244623,-508.1055248,0.000163,2]
[322923605,1713514244634,-7115.11874253,0.000163,2]
[322923606,1713514244644,-342.01061536,0.000163,2]
[322923607,1713514244653,-536.93883292,0.000163,2]
[322923608,1713514244662,-249.9215217,0.000163,2]
[322923609,1713514244671,-3769.1306,0.00016338,2]
[322923610,1713514244680,-1000.0,0.00016338,2]
[322923611,1713514244689,-1144.41091169,0.00016371,2]
[322923612,1713514244699,-150.88,0.00016389,2]
[322923613,1713514244712,-150.88,0.00016389,2]
[322923614,1713514244722,-150.88,0.00016389,2]
[322923615,1713514244730,-307.674,0.0001639,2]
[322923616,1713514244739,-355.0,0.0001639,2]
[322923617,1713514244749,-150.88,0.0001639,2]
[322923618,1713514244758,-150.88,0.0001639,2]
[322923619,1713514244767,-342.77116761,0.00016397,2]
[322923620,1713514244777,-9849.02,0.00016397,2]
[322923621,1713514244786,-3013.60455917,0.00016398,2]
[322923622,1713514244795,-2738.4738294,0.00016398,2]
[322923623,1713514244814,-78.73870668,0.00016398,2]
[322923624,1713514244824,-309.29582041,0.00016398,2]
[322923625,1713514244833,-63.42259919,0.00016398,2]
[322923648,1713514246354,-158.05660954,0.00016195,2]
[322923649,1713514246365,-898.93517711,0.000163,2]
[322923650,1713514246375,-158.05660954,0.000163,2]
[322923651,1713514246384,-482.40151331,0.000163,2]
[322923652,1713514246394,-91.57740081,0.00016398,2]
[322923653,1713514246403,-155.0,0.00016398,2]
[322923654,1713514246412,-320.77344113,0.00016398,2]
[322923655,1713514246421,-345.93853847,0.00016398,2]
[322923656,1713514246430,-157.041916,0.00016398,2]
[322923657,1713514246440,-887.18715713,0.00016398,2]
[322923658,1713514246449,-3616.124,0.00016399,2]
[322923659,1713514246458,-17724.53790496,0.00016399,2]
[322923660,1713514246492,-431.96925012,0.00016399,2]
[322923661,1713514246504,-934.36516636,0.00016399,2]
[322923662,1713514246516,-3238.965,0.00016399,2]
[322923663,1713514246527,-489.45497369,0.00016399,2]
[322923664,1713514246538,-255.5202649,0.00016399,2]
[322923665,1713514246581,-259820.73289567,0.00016399,2]
[322923666,1713514246593,-19041.96657256,0.00016399,2]
[322923667,1713514246630,-1626.95,0.00016399,2]
[322923668,1713514350753,150.0,0.00025017,120]
[322923669,1713514364470,721.53,0.00015437,2]
[322923670,1713514377058,645.98,0.00015439,2]
[322923671,1713514380132,322.99,0.00015425,2]
[322923672,1713514411894,150.0,0.00025947,120]
[322923673,1713514416696,200.0,0.00015394,2]
[322923674,1713514440168,1500.0,0.000155,2]
[322923675,1713514444276,150.0,0.00015368,2]
[322923676,1713514470878,150.0,0.00025036,120]
[322923677,1713514507221,2589.0,0.000155,2]
[322923678,1713514515297,456.55,0.00013434,2]
[322923679,1713514529368,531.12,0.00015335,2]
[322923680,1713514530875,150.0,0.0002637,120]
[322923681,1713514610720,1975.32,0.00015289,2]
[322923682,1713514650742,150.0,0.00027783,120]
[322923683,1713514677730,500.0,0.0001536,2]
[322923684,1713514711405,150.0,0.00025032,120]
[322923685,1713514735340,427.08,0.00015307,2]
[322923687,1713514763476,200.0,0.0001521,2]
[322923688,1713514770860,150.0,0.000154,2]
[322923689,1713514774990,3757.73056516,0.00015502,2]
[322923690,1713514793543,455.6341,0.00015405,2]
[322923691,1713514829189,250.0,0.00015257,2]
[322923692,1713514832182,150.0,0.00025576,120]
[322923693,1713514848925,241.01,0.00015284,2]
[322923694,1713514854788,164.63,0.00015284,2]
[322923695,1713514860261,1250.0,0.00015,2]
[322923696,1713514926988,743.5,0.0001521,2]
[322923697,1713514942488,323.74545186,0.00015502,2]
[322923698,1713514950930,150.0,0.00028003,120]
[322923699,1713514957610,23900.0,0.00015227,2]
[322923700,1713514973877,150.0,0.00015242,2]
[322923701,1713515010831,150.0,0.00024825,120]
[322923702,1713515023560,481.3,0.00013333,2]
[322923703,1713515031529,155.0,0.00015502,2]
[322923704,1713515048437,575.1,0.00015241,2]